bitfinex/quotes_SOLUSD_20241205
["timestamp","ask_amount","ask_price","bid_price","bid_amount"]
[1733436703187,6.6081,233.45,233.28,283.22596101]
[1733436703585,6.6081,233.45,233.33,13.22596101]
[1733436704000,6.6081,233.45,233.34,23.776884]
[1733436704199,6.6081,233.45,233.35,13.22596101]
[1733436706902,6.6081,233.45,233.35,283.22596101]
[1733436710025,6.6081,233.45,233.35,13.22596101]
[1733436711200,1.74607565,233.57,233.35,13.22596101]
[1733436711394,6.1074,233.56,233.41,13.22596101]
[1733436712824,6.1074,233.56,233.43,13.22596101]
[1733436714906,6.1074,233.56,233.42,0.64226886]
[1733436715093,6.1074,233.56,233.43,37.00284501]
[1733436717799,6.1074,233.56,233.43,307.00284501]
[1733436718206,6.1074,233.56,233.39,14.77836101]
[1733436718403,6.1074,233.56,233.4,23.776884]
[1733436718927,23.776884,233.55,233.31,10.7153]
[1733436719128,6.1074,233.56,233.47,13.22596101]
[1733436719326,6.1074,233.56,233.48,0.64228252]
[1733436719624,6.5143,233.66,233.49,13.22596101]
[1733436719804,6.5143,233.66,233.5,0.64208186]
[1733436720036,6.5143,233.66,233.51,13.22596101]
[1733436721301,6.5143,233.66,233.51,270.0]
[1733436721717,23.776884,233.65,233.47,13.22596101]
[1733436722031,23.776884,233.65,233.48,23.776884]
[1733436723021,23.776884,233.65,233.47,13.22596101]
[1733436723221,23.776884,233.65,233.45,13.22596101]
[1733436723427,23.776884,233.65,233.43,13.22596101]
[1733436724226,6.5874,233.64,233.41,0.64223916]
[1733436724399,23.776884,233.63,233.41,0.64223916]
[1733436724597,23.776884,233.61,233.41,0.64223916]
[1733436724913,23.776884,233.61,233.41,270.64223916]
[1733436725123,23.776884,233.61,233.42,13.22596101]
[1733436725300,23.776884,233.61,233.43,0.64226703]
[1733436725922,23.776884,233.61,233.42,13.22596101]
[1733436726133,23.776884,233.61,233.42,13.86826627]
[1733436727106,6.2126,233.62,233.45,23.776884]
[1733436728030,6.2126,233.62,233.46,13.22596101]
[1733436729312,6.2126,233.62,233.43,23.776884]
[1733436729542,23.776884,233.61,233.4,1.5702]
[1733436729714,23.776884,233.61,233.42,13.22596101]
[1733436730021,6.2126,233.6,233.42,13.22596101]
[1733436730213,23.776884,233.59,233.42,13.22596101]
[1733436730417,23.776884,233.59,233.42,13.86829778]
[1733436731221,6.1312,233.58,233.42,13.86829778]
[1733436731526,23.776884,233.57,233.42,13.86829778]
[1733436731702,6.1312,233.58,233.42,13.86829778]
[1733436731901,23.776884,233.57,233.42,13.86829778]
[1733436732332,23.776884,233.57,233.39,0.64232136]
[1733436732535,23.776884,233.57,233.41,13.22596101]
[1733436733624,23.776884,233.57,233.41,283.22596101]
[1733436733809,6.1312,233.58,233.42,0.64232009]
[1733436734011,6.1312,233.58,233.43,13.22596101]
[1733436735203,6.1312,233.58,233.44,0.64229998]
[1733436735604,6.1312,233.58,233.45,13.22596101]
[1733436735808,6.1312,233.58,233.46,0.6422101]
[1733436736240,6.1312,233.58,233.47,37.00284501]
[1733436736942,6.6081,233.75,233.55,13.22596101]
[1733436737104,6.6081,233.75,233.54,1.6274]
[1733436737916,6.6081,233.75,233.54,15.49538305]
[1733436738132,6.6081,233.75,233.54,285.49538305]
[1733436738355,6.6081,233.75,233.54,284.85336101]
[1733436738629,23.776884,233.74,233.54,284.85336101]
[1733436739713,23.776884,233.74,233.55,0.64199021]
[1733436739919,8.31768377,233.75,233.55,0.64199021]
[1733436740531,8.31768377,233.75,233.54,284.85336101]
[1733436740703,8.31768377,233.75,233.54,283.22596101]
[1733436740904,6.5891,233.74,233.52,13.22596101]
[1733436741105,23.776884,233.73,233.5,13.22596101]
[1733436742337,23.776884,233.73,233.52,13.22596101]
[1733436744339,23.776884,233.71,233.51,0.64208712]
[1733436744712,23.776884,233.69,233.48,13.22596101]
[1733436744912,23.776884,233.68,233.48,13.22596101]
[1733436745233,23.776884,233.66,233.46,13.22596101]
[1733436745415,23.776884,233.64,233.47,4.277]
[1733436745622,23.776884,233.64,233.46,13.22596101]
[1733436747545,23.776884,233.64,233.46,13.86820119]
[1733436748120,23.776884,233.64,233.36,21.4254]
[1733436748121,23.776884,233.62,233.44,0.6422488]
[1733436748330,23.776884,233.62,233.38,12.3593]
[1733436748331,6.3437,233.59,233.38,13.22596101]
[1733436748518,6.3437,233.59,233.36,13.22596101]
[1733436748731,23.776884,233.57,233.36,13.22596101]
[1733436749045,23.776884,233.55,233.34,13.22596101]
[1733436750238,6.67885595,233.61,233.25,2.17687238]
[1733436750239,23.776884,233.51,233.25,2.17687238]
[1733436750419,6.0636,233.49,233.27,13.22596101]
[1733436750612,23.776884,233.48,233.27,13.22596101]
[1733436751138,23.776884,233.48,233.27,13.86870753]
[1733436751718,23.776884,233.48,233.29,13.22596101]
[1733436751928,23.776884,233.48,233.29,13.86864037]
[1733436752116,23.776884,233.48,233.31,13.22596101]
[1733436752348,23.776884,233.48,233.31,13.86861404]
[1733436752848,23.776884,233.48,233.33,13.22596101]
[1733436753008,23.776884,233.48,233.33,13.86854317]
[1733436753408,6.0636,233.49,233.35,13.22596101]
[1733436753611,6.0636,233.49,233.35,13.86848546]
[1733436754344,6.0636,233.49,233.33,13.22596101]
[1733436754642,23.776884,233.48,233.31,13.22596101]
[1733436754809,23.776884,233.48,233.31,13.86859512]
[1733436756227,6.0636,233.49,233.35,13.22596101]
[1733436756538,6.0636,233.49,233.3,304.492484]
[1733436756539,6.0636,233.49,233.37,13.22596101]
[1733436756742,6.0636,233.49,233.38,0.64242157]
[1733436758538,6.0636,233.49,233.37,13.22596101]
[1733436759417,6.0636,233.49,233.37,283.22596101]
[1733436760921,6.0636,233.49,233.17,13.225961]
[1733436761128,23.776884,233.48,233.29,13.22596101]
[1733436761728,23.776884,233.48,233.3,0.64265184]
[1733436763742,23.776884,233.46,233.2,0.64265249]
[1733436763914,23.776884,233.46,233.23,13.22596101]
[1733436764115,23.776884,233.46,233.25,13.22596101]
[1733436764331,23.776884,233.46,233.26,0.64279126]
[1733436766042,23.776884,233.46,233.14,10.7229]
[1733436766043,23.776884,233.44,233.14,10.7229]
[1733436766248,6.6244,233.41,233.15,0.64299023]
[1733436766540,23.776884,233.4,233.15,13.86895124]
[1733436767239,23.776884,233.4,233.17,13.22596101]
[1733436767444,23.776884,233.4,233.17,283.86893165]
[1733436767742,23.776884,233.4,233.17,283.22596101]
[1733436768720,23.776884,233.4,233.18,0.64297352]
[1733436769662,6.4367,233.35,233.09,13.22596101]
[1733436769815,6.4367,233.33,233.09,13.22596101]
[1733436770013,6.4367,233.33,233.05,10.7272]
[1733436770014,23.776884,233.32,233.11,14.38131466]
[1733436770443,23.776884,233.32,233.11,0.5121008]
[1733436771352,6.4367,233.33,233.14,13.22596101]
[1733436771949,6.4367,233.33,233.16,13.22596101]
[1733436772456,6.4367,233.33,233.18,13.22596101]
[1733436772674,6.4367,233.33,233.19,0.64293291]
[1733436772961,6.4367,233.33,233.17,37.00284501]
[1733436773152,6.4367,233.33,233.17,13.86895597]
[1733436773534,6.4367,233.33,233.16,270.0]
[1733436774239,6.4367,233.33,233.17,0.64300716]
[1733436774440,6.4367,233.33,233.18,23.776884]
[1733436774643,6.4367,233.33,233.16,23.776884]
[1733436776058,23.776884,233.32,233.14,37.00284501]
[1733436776245,23.776884,233.32,233.14,13.86897901]
[1733436777244,6.4367,233.33,233.16,13.22596101]
[1733436777464,6.4367,233.33,233.17,270.0]
[1733436777667,6.4367,233.33,233.18,23.776884]
[1733436777850,6.4367,233.33,233.17,23.776884]
[1733436778355,6.4367,233.33,233.2,13.22596101]
[1733436778545,6.4367,233.33,233.21,23.776884]
[1733436778862,6.4367,233.33,233.19,23.776884]
[1733436781069,6.4367,233.33,233.21,270.0]
[1733436781377,6.4367,233.33,233.17,20.0]
[1733436781577,23.776884,233.32,233.17,20.0]
[1733436781758,23.776884,233.32,233.15,13.22596101]
[1733436782071,23.776884,233.3,233.11,0.5121008]
[1733436786686,23.776884,233.28,233.11,0.5121008]
[1733436796403,6.0095,233.27,233.11,0.5121008]
[1733436796784,4.93778054,233.27,233.11,0.5121008]
[1733436797308,23.776884,233.26,233.11,0.5121008]
[1733436800782,23.776884,233.24,233.11,0.5121008]
[1733436802105,6.3566,233.25,233.11,0.5121008]
[1733436802281,23.776884,233.24,233.11,0.5121008]
[1733436804100,6.3566,233.25,233.11,0.5121008]
[1733436806495,23.776884,233.24,233.11,0.5121008]
[1733436808898,6.3566,233.25,233.11,0.5121008]
[1733436814014,6.3566,233.25,233.11,13.73806181]
[1733436817917,6.3566,233.25,233.11,283.73806181]
[1733436818424,6.3566,233.25,233.12,0.64313979]
[1733436819690,6.3566,233.25,233.13,10.7236]
[1733436819895,6.3566,233.25,233.14,0.64307734]
[1733436820107,6.0962,233.3,233.15,37.00284501]
[1733436820303,6.0962,233.3,233.15,13.22596101]
[1733436820925,6.0962,233.3,233.16,10.7222]
[1733436821589,6.0962,233.3,233.17,13.22596101]
[1733436821988,6.0962,233.3,233.17,283.22596101]
[1733436823423,6.0962,233.3,233.18,0.64295869]
[1733436825424,6.3599,233.4,233.21,13.22596101]
[1733436825595,6.3599,233.4,233.22,24.41968188]
[1733436826218,6.3599,233.4,233.31,13.22596101]
[1733436826529,6.3599,233.4,233.32,0.64269098]
[1733436827121,6.3599,233.4,233.29,13.86861208]
[1733436827308,6.1402,233.5,233.31,13.22596101]
[1733436827815,6.1402,233.5,233.31,13.86856437]
[1733436828229,6.1402,233.5,233.38,13.22596101]
[1733436828596,6.1402,233.5,233.35,0.64249157]
[1733436829604,6.1402,233.5,233.33,0.64250978]
[1733436831137,6.1402,233.5,233.34,13.22596101]
[1733436831305,6.1402,233.5,233.35,0.64248675]
[1733436834631,6.1402,233.5,233.3,1.5342]
[1733436834819,23.776884,233.49,233.26,11.35995617]
[1733436836021,23.776884,233.49,233.26,281.35995617]
[1733436836234,23.776884,233.49,233.27,13.22596101]
[1733436836415,23.776884,233.49,233.26,280.7173]
[1733436836920,23.776884,233.45,233.21,10.7199]
[1733436837124,23.776884,233.49,233.19,13.22596101]
[1733436837125,6.398,233.42,233.19,13.22596101]
[1733436837314,23.776884,233.41,233.19,13.22596101]
[1733436838303,23.776884,233.41,233.2,0.64288752]
[1733436839807,23.776884,233.41,233.21,23.776884]
[1733436840598,23.776884,233.41,233.13,10.7233]
[1733436840599,6.1028,233.4,233.13,10.7233]
[1733436840935,23.776884,233.35,233.13,13.86882161]
[1733436841145,23.776884,233.35,233.15,13.22596101]
[1733436841312,23.776884,233.35,233.15,13.86897153]
[1733436841837,23.776884,233.35,233.17,13.22596101]
[1733436842126,23.776884,233.35,233.17,13.86891699]
[1733436842506,23.776884,233.35,233.18,23.776884]
[1733436842719,23.776884,233.35,233.19,13.86889496]
[1733436842936,6.1028,233.36,233.21,13.22596101]
[1733436843137,6.1028,233.36,233.22,23.776884]
[1733436843930,6.1028,233.36,233.21,13.22596101]
[1733436844317,6.1028,233.36,233.2,23.776884]
[1733436844504,6.4229,233.34,233.16,23.776884]
[1733436845022,6.4229,233.34,233.14,0.64300051]
[1733436845213,23.776884,233.35,233.11,0.5121008]
[1733436845214,23.776884,233.31,233.11,0.5121008]
[1733436845408,23.776884,233.33,233.11,0.5121008]
[1733436845733,6.4229,233.3,233.11,0.5121008]
[1733436845909,6.4229,233.28,233.11,0.5121008]
[1733436846107,23.776884,233.27,233.11,0.5121008]
[1733436849729,25.46058963,233.27,233.11,0.5121008]
[1733436850108,23.776884,233.25,233.11,0.5121008]
[1733436850729,23.776884,233.25,232.98,10.7303]
[1733436850730,6.3613,233.18,232.88,13.7380618]
[1733436850930,23.776884,233.17,232.91,13.22596101]
[1733436851235,23.776884,233.17,232.95,13.22596101]
[1733436851407,23.776884,233.17,232.97,13.22596101]
[1733436852736,23.776884,233.17,232.99,13.22596101]
[1733436852916,6.3613,233.18,232.99,13.22596101]
[1733436853115,6.3613,233.18,232.99,13.86941558]
[1733436853722,6.3613,233.18,232.99,13.22596101]
[1733436854240,6.3613,233.18,233.01,13.22596101]
[1733436855045,6.3613,233.18,233.05,13.22596101]
[1733436855233,6.3613,233.18,233.06,0.64334236]
[1733436855437,6.3613,233.18,233.07,13.22596101]
[1733436855651,6.3613,233.28,233.09,13.22596101]
[1733436856030,6.3613,233.28,233.13,13.22596101]
[1733436856235,6.3613,233.28,233.13,283.22596101]
[1733436861179,23.776884,233.27,233.05,7.623]
[1733436861464,23.776884,233.27,233.08,13.22596101]
[1733436861645,23.776884,233.27,233.08,13.86917072]
[1733436864032,23.776884,233.27,233.08,283.86917072]
[1733436864261,23.776884,233.27,233.08,283.22596101]
[1733436864458,23.776884,233.27,233.05,7.623]
[1733436864643,23.776884,233.27,233.06,0.64330424]
[1733436867537,23.776884,233.27,233.06,270.64330424]
[1733436867748,23.776884,233.27,233.07,13.22596101]
[1733436867953,6.3613,233.28,233.09,13.22596101]
[1733436868832,6.3613,233.28,233.07,13.22596101]
[1733436869459,23.776884,233.27,233.08,0.64323794]
[1733436871046,23.776884,233.27,233.09,270.0]
[1733436871249,23.776884,233.27,233.05,14.74956101]
[1733436871462,23.776884,233.27,233.06,0.64333127]
[1733436873359,23.776884,233.27,233.07,13.22596101]
[1733436873562,23.776884,233.27,233.08,0.64323279]
[1733436876563,23.776884,233.27,233.09,13.22596101]
[1733436877451,23.776884,233.27,233.08,0.64323279]
[1733436881051,6.4664,233.26,233.08,0.64323279]
[1733436881258,23.776884,233.25,233.05,0.64328404]
[1733436881459,23.776884,233.25,233.02,0.64341358]
[1733436882784,6.6284,233.24,233.02,0.64341358]
[1733436882955,6.6284,233.24,232.98,13.22596101]
[1733436882956,6.6284,233.22,232.99,0.64348967]
[1733436883354,23.776884,233.21,232.99,0.64348967]
[1733436886154,6.6284,233.2,232.99,0.64348967]
[1733436886370,6.6284,233.18,232.96,0.64349151]
[1733436886578,23.776884,233.17,232.96,0.64349151]
[1733436887381,6.6284,233.16,232.91,13.22596101]
[1733436887575,6.6284,233.14,232.91,13.22596101]
[1733436887776,0.5,233.13,232.91,13.22596101]
[1733436887980,0.5,233.13,232.92,0.64364055]
[1733436888784,0.5,233.13,232.96,23.776884]
[1733436890560,0.5,233.13,232.98,23.776884]
[1733436891592,0.5,233.13,232.97,0.64353624]
[1733436892080,0.5,233.13,232.98,23.776884]
[1733436894360,6.6284,233.14,233.0,23.776884]
[1733436894888,0.5,233.13,233.0,23.776884]
[1733436895490,6.6284,233.14,233.0,23.776884]
[1733436896968,6.6284,233.14,233.02,23.776884]
[1733436899163,6.6284,233.14,233.01,23.776884]
[1733436900364,0.5,233.13,232.93,1.5635]
[1733436900662,0.5,233.13,232.93,2.20703876]
[1733436900875,0.5,233.13,232.94,8.48309818]
[1733436901083,0.5,233.13,232.95,0.64353591]
[1733436901701,0.5,233.13,232.96,23.776884]
[1733436901988,0.5,233.13,232.98,23.776884]
[1733436902966,0.5,233.13,232.96,23.776884]
[1733436903377,0.5,233.13,232.98,23.776884]
[1733436903779,0.47910457,233.13,232.98,23.776884]
[1733436903963,0.47910457,233.13,232.96,270.0]
[1733436904165,0.47910457,233.13,232.94,13.25850984]
[1733436904394,0.47910457,233.13,232.95,0.64358531]
[1733436905376,0.47910457,233.13,232.96,23.776884]
[1733436905993,0.47910457,233.13,232.93,1.5635]
[1733436906586,0.47910457,233.13,232.92,13.25850984]
[1733436906995,6.3287,233.12,232.9,13.90217478]
[1733436907194,0.45820914,233.11,232.9,283.90217478]
[1733436907369,0.45820914,233.11,232.9,283.25850984]
[1733436908209,6.3729,233.1,232.9,270.0]
[1733436908370,0.45820914,233.09,232.88,0.5121008]
[1733436908573,6.3729,233.08,232.88,0.5121008]
[1733436908772,0.45820914,233.07,232.88,0.5121008]
[1733436909075,0.45820914,233.07,232.88,1.15589708]
[1733436909781,0.45820914,233.07,232.89,23.776884]
[1733436910002,0.45820914,233.07,232.91,23.776884]
[1733436912594,0.45820914,233.07,232.88,283.77061064]
[1733436912595,23.776884,233.05,232.88,0.5121008]
[1733436912794,6.5907,233.0,232.88,0.5121008]
[1733436913100,6.5907,232.98,232.88,0.5121008]
[1733436913394,0.45820914,232.97,232.88,0.5121008]
[1733436916800,6.5907,232.98,232.88,0.5121008]
[1733436918915,6.2366,233.14,232.88,1.15594983]
[1733436919200,6.2366,233.14,232.89,23.776884]
[1733436921988,6.2366,233.14,232.91,13.25850984]
[1733436922198,6.2366,233.14,232.92,23.776884]
[1733436922687,6.2366,233.14,232.95,270.0]
[1733436922887,6.2366,233.14,232.96,23.776884]
[1733436924086,23.776884,233.13,232.88,0.5121008]
[1733436925405,23.776884,233.13,232.88,24.2889848]
[1733436926385,6.2366,233.14,232.9,23.776884]
[1733436926588,6.2366,233.14,232.92,23.776884]
[1733436927085,6.2366,233.14,232.92,293.776884]
[1733436927993,6.2366,233.14,232.92,23.776884]
[1733436928183,6.2366,233.14,232.9,23.776884]
[1733436928394,6.2366,233.14,232.88,24.2889848]
[1733436928395,23.776884,233.13,232.88,24.2889848]
[1733436928707,6.2366,233.14,232.91,13.25850984]
[1733436928903,6.2366,233.14,232.92,0.64365192]
[1733436930113,6.2366,233.14,232.93,23.776884]
[1733436930987,6.2366,233.14,232.93,293.776884]
[1733436931320,6.2366,233.14,232.93,307.03539384]
[1733436931497,6.2366,233.14,232.95,23.776884]
[1733436931890,6.2366,233.14,232.94,23.776884]
[1733436933119,23.776884,233.13,232.9,1.5787]
[1733436933901,6.2366,233.14,232.88,0.5121008]
[1733436933902,23.776884,233.11,232.88,0.5121008]
[1733436934515,23.776884,233.09,232.88,0.5121008]
[1733436934885,6.5501,233.1,232.88,0.5121008]
[1733436935111,6.5501,233.1,232.89,0.64376889]
[1733436935325,6.5501,233.1,232.9,23.776884]
[1733436935509,6.5501,233.1,232.91,0.64369488]
[1733436935693,6.5501,233.1,232.92,37.03539384]
[1733436935892,6.5501,233.1,232.94,23.776884]
[1733436939415,6.5501,233.1,232.96,23.776884]
[1733436940916,6.5501,233.1,232.98,23.776884]
[1733436942190,6.0435,233.19,233.0,23.776884]
[1733436943802,6.0435,233.19,233.0,37.03539384]
[1733436944213,6.0435,233.19,233.02,37.03539384]
[1733436945138,6.0435,233.19,233.04,23.776884]
[1733436945825,6.0435,233.19,233.04,293.776884]
[1733436946321,6.0435,233.19,233.05,0.64329822]
[1733436946525,6.0435,233.19,233.04,23.776884]
[1733436946729,6.0435,233.19,233.03,23.776884]
[1733436946940,6.0435,233.19,233.05,23.776884]
[1733436947122,6.0435,233.19,233.07,23.776884]
[1733436947636,6.0435,233.19,233.09,23.776884]
[1733436948010,6.2797,233.28,233.09,23.776884]
[1733436948326,6.2797,233.28,233.11,23.776884]
[1733436949234,6.2797,233.28,233.11,293.776884]
[1733436950013,6.2797,233.28,233.16,13.25850984]
[1733436950216,6.2797,233.28,233.17,23.776884]
[1733436951034,6.5314,233.39,233.19,23.776884]
[1733436952542,6.5314,233.39,233.2,13.25850984]
[1733436952851,6.5314,233.39,233.21,23.776884]
[1733436953651,6.5314,233.39,233.18,23.776884]
[1733436953946,6.5314,233.39,233.2,37.03539384]
[1733436954126,6.5314,233.39,233.21,0.64285037]
[1733436954448,6.5314,233.39,233.22,37.03539384]
[1733436956537,6.5314,233.39,233.22,307.03539384]
[1733436956918,6.5314,233.39,233.24,23.776884]
[1733436957137,6.5314,233.39,233.25,0.64278242]
[1733436957329,6.5314,233.39,233.26,37.03539384]
[1733436957547,6.5314,233.39,233.28,23.776884]
[1733436957719,6.5314,233.39,233.28,37.03539384]
[1733436960322,29.892284,233.51,233.27,23.776884]
[1733436960733,6.1154,233.48,233.18,10.7213]
[1733436960939,23.776884,233.47,233.23,13.25850984]
[1733436961234,23.776884,233.47,233.25,13.25850984]
[1733436961754,6.0729,233.46,233.25,13.25850984]
[1733436962049,6.0729,233.46,233.2,34.497284]
[1733436962347,6.0729,233.46,233.24,13.25850984]
[1733436962944,6.0729,233.46,233.25,23.776884]
[1733436963735,6.0729,233.46,233.27,23.776884]
[1733436964037,6.0729,233.46,233.28,13.25850984]
[1733436964225,6.0729,233.46,233.29,23.776884]
[1733436964747,6.0729,233.46,233.31,23.776884]
[1733436965833,6.0729,233.46,233.29,23.776884]
[1733436966449,6.0459,233.42,233.17,14.80050984]
[1733436966661,23.776884,233.41,233.17,14.80050984]
[1733436967036,23.776884,233.41,233.19,13.25850984]
[1733436968761,23.776884,233.41,233.19,283.25850984]
[1733436968969,23.776884,233.41,233.2,23.776884]
[1733436971059,6.0459,233.42,233.21,13.25850984]
[1733436971262,6.0459,233.42,233.22,23.776884]
[1733436971839,6.0459,233.42,233.25,13.25850984]
[1733436972036,6.0459,233.42,233.26,24.4195753]
[1733436972867,6.0459,233.42,233.28,23.776884]
[1733436973048,6.0459,233.42,233.28,293.776884]
[1733436973452,6.0459,233.42,233.3,23.776884]
[1733436973760,6.0459,233.42,233.29,23.776884]
[1733436978068,6.0459,233.42,233.25,23.776884]
[1733436978974,6.0459,233.42,233.25,293.776884]
[1733436979161,6.0459,233.42,233.25,23.776884]
[1733436979471,6.0459,233.42,233.2,13.90127436]
[1733436980954,6.0459,233.42,233.21,23.776884]
[1733436981972,6.2217,233.4,233.15,16.9523]
[1733436982144,6.2217,233.4,233.17,271.542]
[1733436982659,23.776884,233.37,233.13,13.25850984]
[1733436982846,23.776884,233.37,233.13,0.6429777]
[1733436983960,23.776884,233.37,233.14,23.776884]
[1733436984867,23.776884,233.37,233.16,23.776884]
[1733436985248,6.2217,233.38,233.17,23.776884]
[1733436985657,6.2217,233.38,233.17,293.776884]
[1733436988676,1.75466479,233.41,233.1,10.7246]
[1733436988677,6.3533,233.36,233.1,10.7246]
[1733436988975,32.1033,233.33,233.05,1.5299]
[1733436989160,6.3533,233.31,233.03,13.25850984]
[1733436989358,6.0866,233.31,233.03,13.25850984]
[1733436989676,6.0866,233.29,233.02,0.64328429]
[1733436989974,23.776884,233.26,233.04,0.64328429]
[1733436990875,23.776884,233.26,233.03,23.776884]
[1733436991080,23.776884,233.26,233.05,23.776884]
[1733436991762,23.776884,233.26,233.07,23.776884]
[1733436992777,6.0866,233.27,233.07,23.776884]
[1733436992778,6.0866,233.27,233.08,0.64328825]
[1733436992955,23.776884,233.26,233.08,0.64328825]
[1733436993157,23.776884,233.26,233.05,23.776884]
[1733436993972,6.0866,233.27,233.07,23.776884]
[1733436995465,6.0866,233.27,233.09,23.776884]
[1733436995660,6.0866,233.27,233.11,23.776884]
[1733436995862,6.0866,233.27,233.11,293.776884]
[1733436997888,6.0866,233.27,233.13,23.776884]
[1733436998475,6.0866,233.27,233.15,23.776884]
[1733437000663,6.0866,233.27,233.1,1.5916]
[1733437002181,6.0866,233.27,233.11,23.776884]
[1733437005791,6.0866,233.27,233.13,37.03539384]
[1733437006875,6.0866,233.27,233.15,23.776884]
[1733437007596,6.0866,233.27,233.17,23.776884]
[1733437008586,6.6087,233.4,233.17,23.776884]
[1733437008872,6.6087,233.4,233.19,23.776884]
[1733437009400,6.6087,233.4,233.18,23.776884]
[1733437010300,6.6087,233.4,233.18,293.776884]
[1733437010499,23.776884,233.39,233.18,293.776884]
[1733437010899,23.776884,233.39,233.2,23.776884]
[1733437011082,6.6087,233.4,233.2,23.776884]
[1733437011698,6.6087,233.4,233.22,23.776884]
[1733437011897,6.6087,233.4,233.24,23.776884]
[1733437014100,6.6087,233.4,233.24,293.776884]
[1733437014509,23.776884,233.39,233.2,1.6249]
[1733437014798,6.6087,233.4,233.2,1.6249]
[1733437015004,23.776884,233.39,233.14,14.86760984]
[1733437015178,23.776884,233.39,233.18,13.25850984]
[1733437016294,23.776884,233.39,233.19,23.776884]
[1733437016475,6.6087,233.4,233.19,23.776884]
[1733437017207,6.6087,233.4,233.19,24.41975985]
[1733437017496,6.6087,233.4,233.21,23.776884]
[1733437017891,6.6087,233.4,233.23,23.776884]
[1733437018278,6.6087,233.4,233.21,23.776884]
[1733437019587,23.776884,233.39,233.19,23.776884]
[1733437019784,23.776884,233.39,233.21,23.776884]
[1733437020207,6.6087,233.4,233.23,23.776884]
[1733437020419,6.6087,233.4,233.25,23.776884]
[1733437020707,6.6087,233.4,233.23,23.776884]
[1733437021206,6.6087,233.4,233.23,293.776884]
[1733437023996,6.6087,233.4,233.23,23.776884]
[1733437025083,23.776884,233.39,233.17,20.0]
[1733437025294,6.6087,233.4,233.19,20.0]
[1733437025580,6.6087,233.4,233.2,13.25850984]
[1733437026603,6.6087,233.4,233.21,23.776884]
[1733437026815,6.6087,233.4,233.23,23.776884]
[1733437027514,6.6087,233.4,233.21,23.776884]
[1733437028417,6.6087,233.4,233.23,23.776884]
[1733437028624,6.6087,233.4,233.21,23.776884]
[1733437028805,6.6087,233.4,233.19,23.776884]
[1733437029116,23.776884,233.39,233.16,13.25850984]
[1733437030019,23.776884,233.39,233.17,0.64295308]
[1733437030393,23.776884,233.39,233.18,23.776884]
[1733437031817,23.776884,233.39,233.17,23.776884]
[1733437032409,23.776884,233.39,233.19,23.776884]
[1733437033413,23.776884,233.39,233.18,0.64298033]
[1733437033414,6.6087,233.4,233.22,13.25850984]
[1733437033618,6.6087,233.4,233.23,23.776884]
[1733437034938,6.6087,233.4,233.25,23.776884]
[1733437036914,5.53757747,233.4,233.2,13.25850984]
[1733437037219,23.776884,233.39,233.18,13.25850984]
[1733437038318,23.776884,233.39,233.19,23.776884]
[1733437038510,23.776884,233.39,233.18,283.25850984]
[1733437039835,23.776884,233.39,233.19,23.776884]
[1733437040439,5.53757747,233.4,233.19,23.776884]
[1733437040620,5.53757747,233.4,233.24,13.25850984]
[1733437040820,5.53757747,233.4,233.26,23.776884]
[1733437041740,5.53757747,233.4,233.25,23.776884]
[1733437042516,5.53757747,233.4,233.27,23.776884]
[1733437043637,5.53757747,233.4,233.27,293.776884]
[1733437043840,5.53757747,233.4,233.2,13.25850984]
[1733437044049,5.53757747,233.4,233.21,23.776884]
[1733437045430,5.53757747,233.4,233.23,23.776884]
[1733437045630,5.53757747,233.4,233.21,23.776884]
[1733437046127,23.776884,233.39,233.19,0.64288183]
[1733437046816,23.776884,233.37,233.18,270.0]
[1733437047012,23.776884,233.37,233.12,13.25850984]
[1733437047243,30.45573995,233.37,233.12,13.25850984]
[1733437047544,13.3577119,233.39,233.12,13.25850984]
[1733437047545,23.776884,233.35,233.12,13.25850984]
[1733437047919,6.0806,233.32,233.11,1.6432]
[1733437048122,23.776884,233.31,233.08,13.25850984]
[1733437048323,23.776884,233.31,233.09,0.6431603]